Cogmind - Beta 13 @@@ ROGUE MODE // 2024.06.24 @ 20:32:43 Player: Berg Result: Destroyed by S-10 Pest with Light Assault Rifle Performance ------------- Evolutions (1) 500 Regions Visited (2) 400 Robots Destroyed (14) 70 Value Destroyed (356) 356 Prototype IDs (0) 0 Alien Tech Used (0) 0 Bonus (0) 0 TOTAL SCORE: 1326 Bonus ------- None Cogmind --------- Core Integrity 0/400 Matter 290/300 Energy 80/100 System Corruption 34% Temperature Cool (0) Movement Flying (40) Location -9/Materials Parts ------- > --- POWER (1) -------- (None) > --- PROPULSION (3) --- Flight Unit > --- UTILITY (3) ------ (None) > --- WEAPON (2) ------- (None) > --- INVENTORY (5) ---- (None) Peak State ------------ > --- POWER ------------ Light Ion Engine > --- PROPULSION ------- Flight Unit Flight Unit Flight Unit > --- UTILITY ---------- Small Storage Unit Sensor Array Signal Interpreter > --- WEAPON ----------- Light Assault Rifle Light Assault Rifle > --- INVENTORY -------- Light Nuclear Core Flight Unit Flight Unit Mining Laser [Rating: 9] Favorites ----------- Power Light Ion Engine Engine Light Ion Engine Power Core Light Nuclear Core Propulsion Hover Unit Leg Aluminum Leg Wheel Compact Wheel Hover Unit Hover Unit Flight Unit Flight Unit Utility Small Storage Unit Device Sensor Array Storage Small Storage Unit Processor Signal Interpreter Weapon Light Assault Rifle Energy Gun EM Pulse Gun Ballistic Gun Light Assault Rifle Special Weapon Mining Laser Build | -11 -10 -9 ------- Run | Yrd Mat Mat Slots Evolved 2 | . . 2 Power . | . . . Propulsion 1 | . . 1 Utility 1 | . . 1 Weapon . | . . . Parts Attached 34 | 7 13 14 Power 4 | 1 2 1 Engine 3 | 1 2 . Core 1 | . . 1 Reactor . | . . . Propulsion 20 | 2 8 10 Treads . | . . . Leg 2 | . 2 . Wheel 2 | 2 . . Hover 6 | . 4 2 Flight 10 | . 2 8 Utility 3 | 1 1 1 Device 1 | . . 1 Storage 1 | 1 . . Processor 1 | . 1 . Hackware . | . . . Protection . | . . . Artifact . | . . . Weapon 7 | 3 2 2 Energy Gun 1 | 1 . . Energy Cannon . | . . . Ballistic Gun 5 | 2 2 1 Ballistic Cannon . | . . . Launcher . | . . . Special Weapon 1 | . . 1 Impact Weapon . | . . . Slashing Weapon . | . . . Piercing Weapon . | . . . Special Melee Weapon . | . . . Unidentified Prototypes . | . . . Parts Lost 13 | . . 13 Power 2 | . . 2 Propulsion 6 | . . 6 Utility 3 | . . 3 Weapon 2 | . . 2 Highest Loss Streak 5 | . . 5 To Critical Strikes . | . . . Average Slot Usage (%) 77 | . 82 63 Engine 12 | . 14 7 Leg 4 | . 6 . Hover 15 | . 17 9 Flight 4 | . 2 8 Device 1 | . . 5 Storage 13 | . 14 10 Processor 2 | . . 5 Ballistic Gun 22 | . 26 9 Special Weapon 1 | . . 6 Naked Turns 23 | . . 23 Heaviest Build 13 | 13 13 11 Greatest Support 32 | 32 32 12 Greatest Overweight (x) 4 | . 4 3 Average Overweight (x) . | . . . Largest Inventory Capacity 8 | 8 8 8 Average Capacity 7 | 7 8 7 Most Carried 8 | 4 8 8 Average Carried 6 | 2 7 4 Final Capacity 8 | 8 8 5 Final Carried 8 | 4 8 . Class Distribution -------------------- 100% | Mutant Dominant Class ---------------- Mutant | -10/Materials Mutant | -9/Materials Resources | -11 -10 -9 ----------- Run | Yrd Mat Mat Matter Collected 620 | 185 380 55 Remotely . | . . . Salvage Created 590 | . 590 . Parts 28 | . 28 . Haulers Intercepted . | . . . Recyclers Shooed 1 | . 1 . Parts Field Recycled . | . . . Retrieved Matter . | . . . Parts Self-Destructed . | . . . Prevented . | . . . Kills | -11 -10 -9 ------- Run | Yrd Mat Mat Combat Hostiles Destroyed 11 | . 11 . Guns 11 | . 11 . Classes Destroyed 4 | . 4 . Recycler 2 | . 2 . Watcher 1 | . 1 . Swarmer 3 | . 3 . Grunt 8 | . 8 . Best Kill Streak 3 | . 3 . Combat Bots Only 3 | . 3 . Max Kills in Single Turn 1 | . 1 . Gunslinging . | . . . Exploded . | . . . Melee . | . . . Uniques/NPCs Destroyed . | . . . Combat | -11 -10 -9 -------- Run | Yrd Mat Mat Hostile Shots Fired 94 | . 44 50 Missed 25 | . 9 16 Damage Taken 1601 | . 410 1191 Core 449 | . 45 404 Absorbed by Shields . | . . . Core Remaining (%) 91 | 100 82 . Volleys Fired 76 | . 65 11 Largest 2 | . 2 1 Hottest 100 | . 40 100 Shots Fired 130 | . 119 11 Gun 119 | . 119 . Cannon . | . . . Launcher . | . . . Special 11 | . . 11 Kinetic 119 | . 119 . Thermal 11 | . . 11 Explosive . | . . . Electromagnetic . | . . . Robot Hit Streak 18 | . 18 . Robot Miss Streak 5 | . 5 . Penetration Max . | . . . Secondary Targets . | . . . Shots Hit Robots 79 | . 79 . Core Hits 36 | . 33 3 Critical Kills . | . . . Critical Parts Destroyed . | . . . Critical Strikes . | . . . Melee Attacks . | . . . Impact . | . . . Slashing . | . . . Piercing . | . . . Sneak Attacks . | . . . Combat Hostiles . | . . . Follow-up Attacks . | . . . Damage Inflicted 808 | . 748 60 Guns 748 | . 748 . Cannons . | . . . Explosions . | . . . Melee . | . . . Ramming 60 | . . 60 Kinetic 748 | . 748 . Thermal . | . . . Explosive . | . . . Electromagnetic . | . . . Impact . | . . . Slashing . | . . . Piercing . | . . . Highest Corruption 34 | . . 34 Average Corruption 28 | . . 28 Corruption Purged . | . . . Corruption Blocked . | . . . Effects 10 | . . 10 Matter Fused 3 | . . 3 Energy Discharges 1 | . . 1 Parts Rejected 1 | . . 1 Data Loss (minor) 2 | . . 2 Misdirections 3 | . . 3 Overload Shots . | . . . Overflow Damage . | . . . Projectiles . | . . . Explosions . | . . . Melee . | . . . Knockbacks . | . . . Impact . | . . . Kinetic . | . . . Secondary . | . . . Self-Inflicted Damage 27 | . . 27 Shots . | . . . Rammed 14 | . . 14 Targets Rammed 14 | . . 14 Kicked . | . . . Crushed . | . . . Highest Temperature 48 | . 27 48 Average Temperature 10 | . 7 16 Received Heat Transfer 300 | . 228 72 Siege Activations . | . . . Robots Corrupted . | . . . Combat Hostiles . | . . . Parts Fried . | . . . Impact Corruptions . | . . . Robots Melted . | . . . Combat Hostiles . | . . . Parts Melted . | . . . Heat Transferred . | . . . Parts Sabotaged . | . . . Parts Stolen . | . . . Parts Stripped . | . . . Power Chain Reactions . | . . . Alert | -11 -10 -9 ------- Run | Yrd Mat Mat Peak Influence 290 | . 290 70 Initial 47 | . . 47 Average 124 | . 162 37 Maximum Alert Level 1 | . 1 . Low Security (%) 73 | 100 61 100 Level 1 26 | . 38 . Level 2 . | . . . Level 3 . | . . . Level 4 . | . . . Level 5 . | . . . High Security . | . . . Max Security . | . . . Squads Dispatched 2 | . 2 . Investigation 1 | . 1 . Extermination . | . . . Reinforcement 1 | . 1 . Assault . | . . . Garrison . | . . . Intercept . | . . . Searches Triggered . | . . . Construction Impeded . | . . . Haulers Reinforced . | . . . Active Scanning Responses . | . . . Cargo Convoy Interrupts . | . . . Stealth | -11 -10 -9 --------- Run | Yrd Mat Mat Distress Signals 4 | . 2 2 Communications Jammed . | . . . Distress Signals . | . . . Times Spotted 36 | . 25 11 Peak Tracking Total 11 | . 6 11 Tactical Retreats 2 | . 1 1 Traps | -11 -10 -9 ------- Run | Yrd Mat Mat Traps Triggered 3 | . 1 2 Indirectly . | . . . Trap Hack Attempts . | . . . Triggered . | . . . Disarmed . | . . . Reprogrammed . | . . . Reused . | . . . Traps Extracted . | . . . Installed . | . . . Triggered . | . . . Machines | -11 -10 -9 ---------- Run | Yrd Mat Mat Machines Disabled . | . . . Max in Single Turn . | . . . Machines Repaired . | . . . Machines Dismantled . | . . . Machines Sabotaged . | . . . Overloaded Fab Kills . | . . . Hacking | -11 -10 -9 --------- Run | Yrd Mat Mat Machines Accessed 6 | . 6 . Terminals 5 | . 5 . Fabricators . | . . . Repair Stations . | . . . Recycling Units 1 | . 1 . Scanalyzers . | . . . Garrison Access . | . . . Total Hacks 22 | . 22 . Successful 12 | . 12 . Failed 10 | . 10 . Catastrophic . | . . . Database Lockouts . | . . . Manual 18 | . 18 . Terminals 21 | . 21 . Fabricators . | . . . Repair Stations . | . . . Recycling Units 1 | . 1 . Scanalyzers . | . . . Garrison Access . | . . . Terminal Hacks 7 | . 7 . Robot Analysis 2 | . 2 . Terminal Index 1 | . 1 . Alert Level 1 | . 1 . Investigation Status 1 | . 1 . Recall Investigation 1 | . 1 . Hauler Manifests 1 | . 1 . Fabricator Hacks . | . . . Repair Station Hacks . | . . . Recycling Unit Hacks 1 | . 1 . Report Inventory 1 | . 1 . Scanalyzer . | . . . Garrison Access Hacks . | . . . Unauthorized Hacks 4 | . 4 . Terminals 4 | . 4 . Botnet 4 | . 4 . Fabricators . | . . . Repair Stations . | . . . Recycling Units . | . . . Scanalyzers . | . . . Garrison Access . | . . . Data Cores Recovered . | . . . Used . | . . . Hacking Detections 6 | . 6 . Full Trace Events . | . . . Feedback Events . | . . . Feedback Blocked . | . . . Robot Schematics Acquired . | . . . Robots Built . | . . . Authchips . | . . . Time . | . . . Total Robot Build Rating . | . . . Part Schematics Acquired . | . . . Parts Built . | . . . Authchips . | . . . Time . | . . . Total Part Build Rating . | . . . Parts Repaired . | . . . Time . | . . . Parts Recycled . | . . . Recycled Matter . | . . . Retrieved Matter . | . . . Retrieved Components . | . . . Parts Scanalyzed . | . . . Part Schematics Acquired . | . . . Parts Damaged . | . . . Bothacking | -11 -10 -9 ------------ Run | Yrd Mat Mat Used RIF Installer . | . . . Robots Hacked . | . . . Non-combat . | . . . Combat . | . . . Robot Hacks Applied . | . . . Relay Couplers Released . | . . . Fabnet Peak Effective % . | . . . Robots Rewired . | . . . Allies Hacked . | . . . Hacks Repelled . | . . . Allies | -11 -10 -9 -------- Run | Yrd Mat Mat Total Allies . | . . . Largest Group . | . . . Highest-Rated Group . | . . . Highest-Rated Ally . | . . . Total Orders . | . . . Ally Attacks . | . . . Total Damage . | . . . Kills . | . . . Allies Corrupted . | . . . Allies Melted . | . . . Intel | -11 -10 -9 ------- Run | Yrd Mat Mat Robot Analysis Total 2 | . 2 . Derelict Logs Recovered . | . . . Drone Launches . | . . . Drone Recoveries . | . . . Exploration | -11 -10 -9 ------------- Run | Yrd Mat Mat Turns Passed 1178 | 69 835 274 Spaces Moved 875 | 39 669 167 Core 51 | 2 1 48 Treads . | . . . Legs 60 | . 60 . Wheels 43 | 37 6 . Hover 572 | . 527 45 Flight 149 | . 75 74 Fastest Speed 34 | 50 37 34 Average Speed 67 | 97 65 69 Slowest Speed 280 | 100 280 200 Overloaded Moves . | . . . Propulsion Burnouts . | . . . Robots Hopped . | . . . Cave-ins Triggered 2 | . . 2 Exploration Rate (%) 31 | 4 75 15 Regions Visited 2 Branch Regions . Pre-discovered Areas . | . . . Known Exits Taken 1 | . 1 . Unknown Exits Taken 1 | 1 . . Scrap Searched . | . . . Spaces Dug 11 | . . 11 Terrain Destroyed 11 | . . 11 Melee . | . . . Projectile 11 | . . 11 AOE . | . . . Terrain Rammed . | . . . Walls Destroyed . | . . . Machines Disabled . | . . . Actions | -11 -10 -9 --------- Run | Yrd Mat Mat Total 1336 | 67 975 294 Wait 286 | 17 191 78 Move 873 | 38 668 167 Hop . | . . . Pick Up 22 | 4 15 3 Fast Attach 13 | 6 7 . Attach 19 | 1 5 13 Detach 10 | 1 6 3 Swap 2 | . 1 1 Drop 20 | . 17 3 Fire 76 | . 65 11 Melee . | . . . Ram 15 | . . 15 Kick . | . . . Crush . | . . . Escape Stasis . | . . . Rewire . | . . . Trap . | . . . Miscellaneous . | . . . Route ------- -11/Scrapyard -10/Materials (discovered 3 exits: *Mat x2 / [*Min]) -9/Materials History --------- Turn | Location | Event 8 | -11/Scrapyard | Discovered new exit (range 14) 70 | -11/Scrapyard | Entered Materials 83 | -10/Materials | Discovered new exit (range 16) 330 | -10/Materials | Build established: Mutant 474 | -10/Materials | Discovered new exit (range 14) 796 | -10/Materials | Discovered new exit (range 3) 905 | -10/Materials | Identified exit to Materials 905 | -10/Materials | Entered another Materials area 905 | -9/Materials | Evolved 2 slots: Propulsion x1, Utility x1 1049 | -9/Materials | Crushed by falling debris 1049 | -9/Materials | System corruption reached 10% 1080 | -9/Materials | Lost 4 parts (2n2u) 1081 | -9/Materials | Crushed by falling debris 1081 | -9/Materials | System corruption reached 30% 1112 | -9/Materials | Lost 5 parts (1p2n2w) 1134 | -9/Materials | Core integrity fell below 50% 1170 | -9/Materials | Core integrity fell below 20% 1179 | -9/Materials | Destroyed by S-10 Pest with Light Assault Rifle Last Messages --------------- 01133_ Triggered EMP Trap. 01133_ A bubble of electromagnetic force engulfs the area. 01133_ R-06 Scavenger destroyed. 01133_ Door malfunctions. 01133_ Chain reaction triggered in Corrupted Lgt. Ion Engine. 01135_ Acquired 55 matter. 01139_ System corrupted: Component data lost. 01142_ U-05 Engineer lays Concrete. 01143_ R-06 Scavenger collects Corrupted Com. Wheel. 01154_ System corrupted: Matter fused (-6). 01156_ Sml. Storage Unit destroyed. 01158_ Slammed into S-10 Pest. 01161_ Slammed into W-16 Scout. 01169_ System corrupted: Matter fused (-9). 01169_ Slammed into K-01 Serf. 01169_ Destabilizing: System corrupted (+1). 01170_ K-01 Serf sends out distress signal. 01171_ Slammed into K-01 Serf. 01176_ Destabilizing: Core damaged (-8). 01178_ Slammed into K-01 Serf. Map ----- +----------------------------------------------------+ | ?????????????????????????# #?????????????????????? | | ?????????????????????????# #?????????????????????? | | ?????????????????????????# #?????????????????????? | | ?????????????????????????# #?????????????????????? | | ?????????????????????????# #?????????????????????? | | ?????????????????????????# #?????????????????????? | | ?????????????????????????# #?????????????????????? | | ????????????????????????##/##+###????????????????? | | ????????????????????????#% #????????????????? | | ????????????????# ####### #????????????????? | | ????????????????# + #????????????????? | | ?????????????????########% "T" +????????????????? | | ????????????????????????# """ #????????????????? | | ????????????????????????#+#######????????????????? | | ????????????????????????# #??????????????????????? | | ????????????????????????# #??????????????????????? | | ????????????????????????# #??????????????????????? | | ????????????????????????# #??????????????????????? | | ????????????????????????#s#??????????????????????? | | ????????????????????????#s#??????????????????????? | | ????????????????????????#s#??????????????????????? | | ????????????????????????#s#??????????????????????? | | ????????????????????????#s#??????????????????????? | | ????????????????????????#s#??????????????????????? | | ????????????????????????#s#??????????????????????? | | ????????????????????????#@#??????????????????????? | | ????????????????????????# ?????????????????????? | | ???????????????????????? k ???????????????????? | | ???????????????????????? ?????????????????? | | ???????????????????????# k ???????????????? | | ???????????????????????# """ """ ?????????????? | | ???????????????????????#k """ """? ????????????? | | ???????????????????????# """ """??????????????? | | ???????????????????????+ ??????????????? | | ???????????????????????# ??? ??????????????? | | ???????????????????????## ^""????""??????????????? | | ????????????????????????? ""????????????????????? | | ????????????????????????? "?????????????????????? | | ????????????????????????? ?????????????????????? | | ????????????????????????? ??????????????????????? | | ????????????????????????? ??????????????????????? | | ?????????????????????????????????????????????????? | | ?????????????????????????????????????????????????? | | ?????????????????????????????????????????????????? | | ?????????????????????????????????????????????????? | | ?????????????????????????????????????????????????? | | ?????????????????????????????????????????????????? | | ?????????????????????????????????????????????????? | | ?????????????????????????????????????????????????? | | ?????????????????????????????????????????????????? | +----------------------------------------------------+ Best States ------------- Heat Dissipation 28 Energy Generation 14 Energy Capacity 250 Matter Stores 300 Matter Capacity 300 Sight Range 16 Robot Scan Range 14 Terrain Scan Density 10 Evasion (%) 63 Item Schematics ----------------- None Robot Schematics ------------------ None Fabricated ------------ Nothing Alien Tech Used ----------------- None Achievements -------------- None Challenges ------------ None Game ------ Seed StructuralTacticalClaw Manual? 0 Play Time 00:22:26 Cumulative 44.6 hours Start 2024.06.24 @ 20:02:31 End 2024.06.24 @ 20:32:43 Sessions 1 Manual Loads 0 Difficulty Rogue Special Mode None Game No. 40 Rogue 40 Adventurer 0 Explorer 0 Win Type - Total 0 Types 0/0/0/0/0/0/0/0/0 Lore% 10 Gallery% 38 Achievement% 33 Wizard Run 0 Options --------- Layout 0 ASCII 0 Keyboard 1 Movement Numpad Keybinds 0 Fullscreen 2 Font 18/SmallcapsGlow Map View 76x50 Zoom Use 0% Tactical HUD 1 Map Filters NONE Filters NONE Steam 1 RUN: 974c260c-ae49-469e-90a6-dc71eb5987c6